Cogmind - Beta 10.2 *** ADVENTURER MODE // 2021.03.18 @ 10:12:26 Player: hop Result: Self-destructed Performance ------------- Evolutions (1) 500 Regions Visited (2) 400 Robots Destroyed (24) 120 Value Destroyed (372) 372 Prototype IDs (0) 0 Alien Tech Used (0) 0 Bonus (0) 0 TOTAL SCORE: 1392 Bonus ------- None Cogmind --------- Core Integrity 352/400 Matter 140/300 Energy 250/250 System Corruption 0% Temperature Cool (0) Movement Treading (145) Location -9/Materials Parts ------- > --- POWER (1) -------- Ion Engine > --- PROPULSION (2) --- Advanced Treads Advanced Treads > --- UTILITY (2) ------ Visual Processing Unit Signal Interpreter > --- WEAPON (4) ------- Assault Rifle Flak Cannon Flak Cannon Grenade Launcher > --- INVENTORY (4) ---- Flak Cannon Flak Cannon Rocket Launcher Rocket Launcher Peak State ------------ > --- POWER ------------ Ion Engine > --- PROPULSION ------- Advanced Treads Advanced Treads > --- UTILITY ---------- Visual Processing Unit Signal Interpreter > --- WEAPON ----------- Assault Rifle Flak Cannon Flak Cannon Grenade Launcher > --- INVENTORY -------- Flak Cannon Flak Cannon Rocket Launcher Rocket Launcher [Rating: 19] Favorites ----------- Power Ion Engine Engine Ion Engine Propulsion Light Treads Treads Light Treads Utility Improved Terrain Scanner Device Improved Terrain Scanner Processor Seismic Analyzer Weapon Assault Rifle Energy Gun Spread Laser Ballistic Gun Assault Rifle Ballistic Cannon Flak Cannon Launcher Grenade Launcher Build | -11 -10 -9 ------- Run | Scr Mat Mat Slots Evolved 2 | . . 2 Power . | . . . Propulsion . | . . . Utility . | . . . Weapon 2 | . . 2 Parts Attached 18 | 7 5 6 Power 1 | 1 . . Engine 1 | 1 . . Core . | . . . Reactor . | . . . Propulsion 6 | 2 2 2 Treads 6 | 2 2 2 Leg . | . . . Wheel . | . . . Hover . | . . . Flight . | . . . Utility 4 | 2 2 . Device 1 | 1 . . Storage . | . . . Processor 3 | 1 2 . Hackware . | . . . Protection . | . . . Artifact . | . . . Weapon 7 | 2 1 4 Energy Gun 2 | . . 2 Energy Cannon . | . . . Ballistic Gun 2 | 2 . . Ballistic Cannon 2 | . . 2 Launcher 1 | . 1 . Special Weapon . | . . . Impact Weapon . | . . . Slashing Weapon . | . . . Piercing Weapon . | . . . Special Melee Weapon . | . . . Unidentified Prototypes . | . . . Parts Lost . | . . . Power . | . . . Propulsion . | . . . Utility . | . . . Weapon . | . . . Highest Loss Streak . | . . . Average Slot Usage (%) 100 | . 100 100 Engine 13 | . 14 11 Treads 26 | . 28 22 Device 7 | . 9 . Processor 19 | . 18 22 Energy Gun 1 | . . 4 Ballistic Gun 13 | . 14 11 Ballistic Cannon 4 | . . 17 Launcher 13 | . 13 11 Naked Turns . | . . . Heaviest Build 22 | 9 11 22 Greatest Support 44 | 40 40 44 Greatest Overweight (x) . | . . . Average Overweight (x) . | . . . Largest Inventory Capacity 4 | 4 4 4 Average Capacity 4 | 4 4 4 Most Carried 4 | 4 4 4 Average Carried 3 | 2 3 3 Final Capacity 4 | 4 4 4 Final Carried 4 | 3 4 4 Class Distribution -------------------- 84% | Mutant 15% | Skirmisher Dominant Class ---------------- Mutant | -10/Materials Skirmisher | -9/Materials Resources | -11 -10 -9 ----------- Run | Scr Mat Mat Matter Collected 471 | 321 131 19 Remotely . | . . . Salvage Created 571 | 207 333 31 Parts 37 | 16 17 4 Haulers Intercepted . | . . . Recyclers Shooed 3 | . 3 . Parts Field Recycled . | . . . Retrieved Matter . | . . . Parts Self-Destructed . | . . . Prevented . | . . . Kills | -11 -10 -9 ------- Run | Scr Mat Mat Combat Hostiles Destroyed 12 | . 10 2 Guns 2 | . 1 1 AOE 10 | . 9 1 Classes Destroyed 7 | 3 4 . Worker 2 | 2 . . Tunneler 4 | 4 . . Recycler 3 | 1 2 . Mechanic 1 | . 1 . Watcher 2 | . 1 1 Swarmer 8 | . 6 2 Grunt 4 | . 4 . Best Kill Streak 4 | 3 4 2 Combat Bots Only 3 | . 3 2 Max Kills in Single Turn 3 | 1 3 2 Gunslinging . | . . . Exploded 2 | . 2 1 Melee . | . . . Uniques/NPCs Destroyed . | . . . Combat | -11 -10 -9 -------- Run | Scr Mat Mat Damage Taken 278 | . 179 99 Core 75 | . 27 48 Absorbed by Shields . | . . . Core Remaining (%) 94 | 100 89 . Volleys Fired 41 | 21 16 4 Largest 2 | 2 2 2 Hottest 50 | 40 50 50 Shots Fired 65 | 31 26 8 Gun 51 | 31 16 4 Cannon . | . . . Launcher 14 | . 10 4 Special . | . . . Kinetic 51 | 31 16 4 Thermal . | . . . Explosive 14 | . 10 4 Electromagnetic . | . . . Robot Hit Streak 22 | 17 22 1 Robot Miss Streak 2 | 1 1 2 Penetration Max . | . . . Secondary Targets . | . . . Shots Hit Robots 46 | 28 16 2 Core Hits 35 | 13 18 4 Critical Hits . | . . . Critical Kills . | . . . Critical Parts Destroyed . | . . . Melee Attacks . | . . . Impact . | . . . Slashing . | . . . Piercing . | . . . Sneak Attacks . | . . . Combat Hostiles . | . . . Follow-up Attacks . | . . . Damage Inflicted 1270 | 262 851 157 Guns 385 | 262 93 30 Cannons . | . . . Explosions 885 | . 758 127 Melee . | . . . Ramming . | . . . Kinetic 385 | 262 93 30 Thermal . | . . . Explosive 885 | . 758 127 Electromagnetic . | . . . Impact . | . . . Slashing . | . . . Piercing . | . . . Highest Corruption . | . . . Average Corruption . | . . . Corruption Purged . | . . . Overload Shots . | . . . Overflow Damage 41 | . 36 5 Projectiles . | . . . Explosions 41 | . 36 5 Melee . | . . . Knockbacks . | . . . Impact . | . . . Kinetic . | . . . Secondary . | . . . Self-Inflicted Damage 150 | . 114 36 Shots 7 | . 6 1 Rammed . | . . . Targets Rammed . | . . . Kicked . | . . . Crushed . | . . . Highest Temperature 5 | . 5 . Average Temperature 2 | . 2 . Received Heat Transfer 15 | . 15 . Siege Activations . | . . . Robots Corrupted . | . . . Combat Hostiles . | . . . Parts Fried 1 | . 1 . Impact Corruptions . | . . . Robots Melted . | . . . Combat Hostiles . | . . . Parts Melted . | . . . Heat Transferred . | . . . Parts Sabotaged . | . . . Parts Stolen . | . . . Parts Stripped . | . . . Power Chain Reactions . | . . . Missiles Intercepted . | . . . Alert | -11 -10 -9 ------- Run | Scr Mat Mat Peak Influence 155 | 35 155 121 Initial 55 | . 19 55 Average 57 | 15 65 61 Maximum Alert Level . | . . . Low Security (%) 100 | 100 100 100 Level 1 . | . . . Level 2 . | . . . Level 3 . | . . . Level 4 . | . . . Level 5 . | . . . High Security . | . . . Max Security . | . . . Squads Dispatched 2 | . 2 . Investigation 2 | . 2 . Extermination . | . . . Reinforcement . | . . . Assault . | . . . Garrison . | . . . Intercept . | . . . Construction Impeded . | . . . Haulers Reinforced . | . . . Stealth | -11 -10 -9 --------- Run | Scr Mat Mat Distress Signals 1 | . . 1 Communications Jammed . | . . . Distress Signals . | . . . Times Spotted 22 | . 14 8 Peak Tracking Total 5 | . 5 5 Tactical Retreats 1 | . 1 . Traps | -11 -10 -9 ------- Run | Scr Mat Mat Traps Triggered 2 | . 2 . Indirectly . | . . . Trap Hack Attempts . | . . . Triggered . | . . . Disarmed . | . . . Reprogrammed . | . . . Reused . | . . . Traps Extracted . | . . . Installed . | . . . Triggered . | . . . Machines | -11 -10 -9 ---------- Run | Scr Mat Mat Machines Disabled 5 | . 4 1 Max in Single Turn 2 | . 2 1 Machines Sabotaged . | . . . Garrisons Compromised . | . . . Overloaded Fab Kills . | . . . Fab Network Shutdowns . | . . . Hacking | -11 -10 -9 --------- Run | Scr Mat Mat Machines Accessed 3 | . 3 . Terminals 3 | . 3 . Fabricators . | . . . Repair Stations . | . . . Recycling Units . | . . . Scanalyzers . | . . . Garrison Access . | . . . Total Hacks 14 | . 14 . Successful 10 | . 10 . Failed 4 | . 4 . Catastrophic . | . . . Database Lockouts . | . . . Manual . | . . . Terminals 14 | . 14 . Fabricators . | . . . Repair Stations . | . . . Recycling Units . | . . . Scanalyzers . | . . . Garrison Access . | . . . Terminal Hacks 10 | . 10 . Record 2 | . 2 . Robot Analysis 1 | . 1 . Emergency Access Points 1 | . 1 . Terminal Index 1 | . 1 . Unreport Threat 1 | . 1 . Dispatch Records 1 | . 1 . Transport Status 1 | . 1 . Reinforcement Status 1 | . 1 . Zone Layout 1 | . 1 . Fabricator Hacks . | . . . Repair Station Hacks . | . . . Recycling Unit Hacks . | . . . Scanalyzer . | . . . Garrison Access Hacks . | . . . Unauthorized Hacks . | . . . Terminals . | . . . Fabricators . | . . . Repair Stations . | . . . Recycling Units . | . . . Scanalyzers . | . . . Garrison Access . | . . . Data Cores Recovered . | . . . Used . | . . . Hacking Detections 3 | . 3 . Full Trace Events . | . . . Feedback Events . | . . . Feedback Blocked . | . . . Robot Schematics Acquired . | . . . Robots Built . | . . . Matter . | . . . Time . | . . . Total Robot Build Rating . | . . . Part Schematics Acquired . | . . . Parts Built . | . . . Matter . | . . . Time . | . . . Total Part Build Rating . | . . . Parts Repaired . | . . . Time . | . . . Parts Recycled . | . . . Recycled Matter . | . . . Retrieved Matter . | . . . Retrieved Components . | . . . Parts Scanalyzed . | . . . Part Schematics Acquired . | . . . Parts Damaged . | . . . Bothacking | -11 -10 -9 ------------ Run | Scr Mat Mat Used RIF Installer . | . . . Robots Hacked . | . . . Non-combat . | . . . Combat . | . . . Robot Hacks Applied . | . . . Relay Couplers Released . | . . . Robots Rewired . | . . . Allies Hacked . | . . . Hacks Repelled . | . . . Allies | -11 -10 -9 -------- Run | Scr Mat Mat Total Allies . | . . . Largest Group . | . . . Highest-Rated Group . | . . . Highest-Rated Ally . | . . . Total Orders . | . . . Ally Attacks . | . . . Total Damage . | . . . Kills . | . . . Allies Corrupted . | . . . Allies Melted . | . . . Intel | -11 -10 -9 ------- Run | Scr Mat Mat Robot Analysis Total 1 | . 1 . Derelict Logs Recovered . | . . . Drone Launches . | . . . Drone Recoveries . | . . . Exploration | -11 -10 -9 ------------- Run | Scr Mat Mat Turns Passed 1153 | 155 725 273 Spaces Moved 607 | 61 385 161 Core 6 | 6 . . Treads 601 | 55 385 161 Legs . | . . . Wheels . | . . . Hover . | . . . Flight . | . . . Fastest Speed 50 | 50 160 145 Average Speed 155 | 149 160 148 Slowest Speed 160 | 160 160 160 Overloaded Moves . | . . . Propulsion Burnouts . | . . . Robots Hopped . | . . . Cave-ins Triggered . | . . . Exploration Rate (%) 32 | 7 67 24 Regions Visited 2 Branch Regions . Pre-discovered Areas . | . . . Known Exits Taken 1 | . 1 . Unknown Exits Taken 1 | 1 . . Scrap Searched . | . . . Spaces Dug . | . . . Terrain Destroyed 104 | . 85 19 Melee . | . . . Projectile . | . . . AOE 104 | . 85 19 Terrain Rammed . | . . . Walls Destroyed . | . . . Machines Disabled . | . . . Actions | -11 -10 -9 --------- Run | Scr Mat Mat Total 756 | 98 471 187 Wait 55 | . 47 8 Move 605 | 60 384 161 Hop . | . . . Pick Up 23 | 10 9 4 Fast Attach 1 | . 1 . Attach 9 | 7 . 2 Detach . | . . . Swap 8 | . 4 4 Drop 14 | . 10 4 Fire 41 | 21 16 4 Melee . | . . . Ram . | . . . Kick . | . . . Crush . | . . . Escape Stasis . | . . . Rewire . | . . . Trap . | . . . Miscellaneous . | . . . Route ------- -11/Scrapyard -10/Materials (discovered 3 exits: *Mat x3) -9/Materials (discovered 1 exit: [*Min]) History --------- Turn | Location | Event 77 | -11/Scrapyard | Discovered new exit (range 15) 156 | -11/Scrapyard | Entered Materials 302 | -10/Materials | Build established: Mutant 353 | -10/Materials | Discovered new exit (range 5) 681 | -10/Materials | Discovered new exit (range 3) 833 | -10/Materials | Discovered new exit (range 8) 844 | -10/Materials | Identified exit to Materials 881 | -10/Materials | Entered another Materials area 881 | -9/Materials | Evolved 2 slots: Weapon x2 1145 | -9/Materials | Discovered new exit (range 7) 1154 | -9/Materials | Self-destructed Last Messages --------------- 00951_ Dropped Lgt. Treads. 00973_ K-01 Serf collects debris. 00978_ K-01 Serf cleans the Fusion Modulator. 01068_ W-16 Scout destroyed. 01069_ The unstable cave ceiling collapses. 01069_ U-05 Engineer lays Concrete. 01075_ U-05 Engineer builds a Door. 01076_ U-05 Engineer builds a Wall. 01079_ Acquired 19 matter. 01080_ U-05 Engineer builds a Wall. 01085_ U-05 Engineer lays Concrete. 01088_ U-05 Engineer builds a Wall. 01092_ U-05 Engineer lays Concrete. 01145_ S-10 Pest destroyed. 01145_ Destroyed Flight Unit. 01145_ EXIT=FOUND 01145_ S-10 Pest destroyed. 01147_ U-05 Engineer lays Concrete. 01151_ W-16 Scout distress signal alerts nearby ally. 01152_ U-05 Engineer lays Concrete. Map ----- +----------------------------------------------------+ | ?????????????????????????????????????????????????? | | ?????????????????????????????????????????????????? | | ?????????????????????????????????????????????????? | | ?????????????????????????????????????????????????? | | ?????????????????????????????????????????????????? | | ?????????????????????????????????????????????????? | | ?????????????????????????????????????????????????? | | ?????????????????????????????????????????????????? | | ?????????????????????????????????????????????????? | | ?????????????????????????????????????????????????? | | ?????????????????????????????????????????????????? | | ?????????????????????????????????????????????????? | | ???????????????????????????????????? ????????????? | | ???????????? ?????????????????????? #????????????? | | ???????????? ????##?#####???????? #????????????? | | ????????????? ???#""|"!""???????? #????????????? | | ?????????????# ??# "?"!" #?????? #????????????? | | ?????????????? ## #????? ?????????????? | | ???????????????? u ? ???? ?????????????? | | ????????????????? < ????[ ?????????????? | | ??????????????????? ? ??? ??????????????? | | ???????????????????? #?? """ #????????????? | | ?????????????????##### # ## """ #????????????? | | ?????????????##### # """ # ??????? | | ?????????????# # #??????????? | | ?????????????# # @ ?????? | | ?????????????# # %s% #????????????? | | ?????????????# # # # #????????????? | | ############## # su ## #?? #??????????? | | # + # #??#???? #??????????? | | !# # ####/#####????????? #??????????? | | # ##+#####u#???????????????#??????????? | | # r #??????????????????????????? | | / #??????????????????????????? | | #* *]! #??????????????????????????? | | " "# ]! """ +??????????????????????????? | | """# ]! """ #??????????????????????????? | | # " """ #??????????????????????????? | | ##### T """ #??????????????????????????? | | ????# " #??????????????????????????? | | ????# #??????????????????????????? | | ?# #???????#########??????????? | | ?# ######### #### +???????# #??????????? | | ?#?????????# #??# #???????# """ #??????????? | | ???????????# #??# #???????# """ #??????????? | | ???????????+ #??# ######### """ #??????????? | | ???????????# #??# ## #??????????? | | ??+######### #??# ## """ #??????????? | | ?# # #??# ## """ #??????????? | | ?? # #?#####+### ## """ #??????????? | +----------------------------------------------------+ Best States ------------- Heat Dissipation 28 Energy Generation 10 Energy Capacity 250 Matter Stores 300 Matter Capacity 300 Sight Range 18 Terrain Scan Range 16 Terrain Scan Density 60 Resistance: KI 20 Resistance: TH 20 Resistance: EX 20 Resistance: EM 20 Resistance: I 20 Resistance: S 20 Resistance: P 20 Evasion (%) 40 Recoil Reduction 2 Offensive Hacking 10 Item Schematics ----------------- None Robot Schematics ------------------ None Fabricated ------------ Nothing Alien Tech Used ----------------- None Achievements -------------- None Challenges ------------ None Game ------ Seed BombHypervelocityAirjet Manual? 0 Play Time 00:12:15 Cumulative 28.5 hours Start 2021.03.17 @ 13:00:03 End 2021.03.18 @ 10:12:26 Sessions 3 Manual Loads 0 Difficulty Adventurer Special Mode None Game No. 52 Rogue 43 Adventurer 6 Explorer 3 Win Type - Total 0 Types 0/0/0/0/0/0/0/0/0 Lore% 13 Gallery% 27 Achievement% 23 Wizard Run 0 Options --------- ASCII 0 Keyboard 0 Movement Numpad Keybinds 0 Fullscreen 1 Font 18/SmallcapsGlow Map View 76x50 Tactical HUD 1 Map Filters NONE Filters NONE Steam 1 RUN: 99a8d7d9-4fc4-47d0-a206-d314e730ff77